[Event "87th Spanish Championship 2022"]
[Site "Linares"]
[Date "2022.08.12"]
[Round "2.32"]
[White "Fernandez Garcia, Jose Luis"]
[Black "Gomez Carreno, Martin"]
[Result "1/2-1/2"]
[ECO "C77"]
[WhiteElo "2362"]
[BlackElo "2155"]
[Annotator "TA"]
[PlyCount "141"]
[EventDate "2022.08.11"]
[EventType "swiss"]
[EventCountry "ESP"]
[SourceTitle "playchess.com"]
[Source "ChessBase"]
[SourceQuality "1"]
[TimeControl "5400+30"]

{[%evp 20,141,15,6,4,5,25,17,28,36,28,32,50,66,65,36,45,45,64,25,54,21,54,35,52,52,111,102,102,79,82,83,94,94,92,81,106,83,93,103,105,101,113,113,112,80,99,44,120,117,113,113,127,79,116,85,86,78,86,75,89,27,30,28,28,28,28,29,29,26,31,27,108,40,56,43,126,106,495,495,497,492,877,792,628,589,1415,1273,1389,1235,1422,1298,1035,773,1463,1470,699,0,1364,1265,1339,1275,2234,2147,29972,29974,29971,29973,29974,29975,29980,29981,29981,29982,29982,29983,29983,29984,29984,29985,29985,29984,29983,29982]} 1. e4 {[%emt 0:10:18]} e5 {[%emt 0:00:06]} 2. Nf3 {[%emt 0:00:07]} Nc6 {[%emt 0:00:08]} 3. Bb5 {[%emt 0:00:04]} a6 {[%emt 0:00:08]} 4. Ba4 {[%emt 0:00:05]} Nf6 {[%emt 0:00:13]} 5. d4 {[%emt 0:00:08]} exd4 {[%emt 0:00:35]} 6. O-O {[%emt 0:00:15]} Be7 {[%emt 0:00:08]} 7. e5 {[%emt 0:00:17]} Ne4 {[%emt 0:01:29]} 8. Nxd4 {[%emt 0:00:26]} Nxd4 {[%emt 0:01:07]} 9. Qxd4 {[%emt 0:00:08]} Nc5 {[%emt 0:00:06]} 10. Nc3 {[%emt 0:01:09]} O-O {[%emt 0:02:29]} 11. Rd1 {[%emt 0:00:03] Recently 11.Bb3 got a lot of attention.} d6 {[%emt 0:06:05] C84: Closed Ruy Lopez: Unusual White 6th moves.} 12. Be3 {[%emt 0:00:05]} Nxa4 {[%emt 0:12:54]} 13. Qxa4 {[%emt 0:03:08]} Be6 {[%emt 0:05:55] The position is equal.} 14. exd6 {[%emt 0:01:39]} Bxd6 {[%emt 0:00:46]} 15. Bf4 {[%emt 0:00:08] [#]} Qe7 $146 {[%emt 0:02:20]} ({Predecessor:} 15... b5 16. Qe4 Re8 17. Bxd6 cxd6 18. Qf4 Qa5 19. a3 Rac8 20. Rxd6 Bc4 21. Rad1 b4 22. axb4 Qxb4 {1-0 (38) Wittmann,W (2415)-Stoica,V (2450) Luzern 1982}) 16. Bxd6 {[%emt 0:00:51]} cxd6 {[%emt 0:00:02]} 17. Qb4 {[%emt 0:07:35]} Rad8 {[%emt 0:09:24]} 18. Rd4 {[%emt 0:12:14]} Qc7 {[%emt 0:07:15]} 19. Rad1 {[%emt 0:01:50][%cal Rd4d6]} d5 {[%emt 0:04:36]} 20. R4d3 {[%emt 0:03:13]} Rc8 {[%emt 0:06:52]} 21. Qd4 {[%emt 0:00:47]} Qc5 {[%emt 0:06:40]} 22. R1d2 {[%emt 0:08:39][%cal Rc3d5]} Qxd4 {[%emt 0:10:55]} (22... Rfd8 $14) 23. Rxd4 $16 {[%emt 0:00:06]} Rfd8 {[%emt 0:00:05]} 24. Nd1 {[%emt 0:00:41]} Kf8 {[%emt 0:02:07]} 25. Ne3 {[%emt 0:00:05]} Ke7 {[%emt 0:05:25]} 26. f4 {[%emt 0:00:16] aiming for f5.} g6 {[%emt 0:03:18] Inhibits f5.} 27. g4 {[%emt 0:00:55] f5 is the strong threat.} f5 {[%emt 0:00:50]} 28. gxf5 {[%emt 0:02:49]} gxf5 {[%emt 0:00:17]} 29. c3 {[%emt 0:00:12]} Rg8+ {[%emt 0:04:14]} 30. Kf2 {[%emt 0:00:30]} Rg6 {[%emt 0:01:12]} 31. Nxd5+ {[%emt 0:00:28]} Kf7 {[%emt 0:00:32]} 32. Ne3 {[%emt 0:05:12]} Rcg8 {[%emt 0:01:23]} 33. Rd8 {[%emt 0:04:25]} (33. Kf1 $16) 33... Rh6 {[%emt 0:00:41]} (33... Rxd8 $14 34. Rxd8 Rh6) 34. Rxg8 {[%emt 0:04:50] White is more active.} Kxg8 {[%emt 0:00:09][%mdl 4096] Endgame KRB-KRN} 35. Kg3 {[%emt 0:00:50]} Rg6+ {[%emt 0:01:07]} 36. Kf3 {[%emt 0:01:15]} (36. Kh4 $142 $1) 36... Kf7 {[%emt 0:01:02]} 37. Rd6 {[%emt 0:19:48]} Rh6 {[%emt 0:02:09]} 38. Kg3 {[%emt 0:00:46] Prevents Rh3+.} Rg6+ {[%emt 0:00:14]} 39. Kf2 {[%emt 0:00:47]} Rh6 {[%emt 0:00:01]} 40. Kg2 {[%emt 0:00:05]} (40. Nf1 $16) 40... Rg6+ $1 $11 {[%emt 0:00:34]} 41. Kf1 {[%emt 0:01:34]} Rh6 {[%emt 0:00:32]} 42. Rb6 {[%emt 0:03:51]} Rxh2 {[%emt 0:01:35]} 43. Rxb7+ {[%emt 0:00:01]} Kf6 {[%emt 0:00:27]} 44. Rb6 {[%emt 0:00:02]} h5 {[%emt 0:02:05]} 45. Kg1 {[%emt 0:01:06]} Rd2 {[%emt 0:00:51]} (45... Re2 $11 46. Ng2 Kf7) 46. Ng2 {[%emt 0:01:23]} ({Much less strong is} 46. Rxa6 Rxb2 47. Nd5+ Kf7 $14) ({White should try} 46. Nc4 $1 $16 Rd1+ 47. Kf2) 46... Ke7 {[%emt 0:00:49]} 47. Nh4 {[%emt 0:00:41]} Kd7 {[%emt 0:00:49] White leaves nothing to chance now.} (47... Bxa2 $14 48. Nxf5+ Kd7) 48. a4 {[%emt 0:00:26]} ({Resist} 48. Rxa6 Rxb2 49. a4 Rc2 $14) 48... Rd6 $2 {[%emt 0:01:08][%mdl 8192] [#]} (48... Re2 $16 {is a better chance.}) 49. Rxd6+ $1 $18 {[%emt 0:05:45]} Kxd6 {[%emt 0:00:00] [#] KB-KN} 50. Nf3 $1 {[%emt 0:00:05]} Kd5 {[%emt 0:00:23]} (50... Bf7 $142 51. Kf2 Bc4) 51. Nd2 {[%emt 0:00:20]} Bd7 {[%emt 0:01:03]} 52. b3 {[%emt 0:00:14]} Be8 {[%emt 0:00:28]} 53. Kg2 {[%emt 0:00:07]} Ke6 {[%emt 0:00:17]} 54. Kg3 {[%emt 0:00:02]} Kf6 {[%emt 0:00:23]} 55. Kh4 {[%emt 0:00:24]} Bf7 {[%emt 0:00:28]} 56. Nc4 {[%emt 0:00:33] Black must now prevent a5.} Be8 {[%emt 0:01:02]} 57. Nd6 {[%emt 0:00:37]} Bc6 {[%emt 0:00:23]} 58. Nc4 $2 {[%emt 0:01:10]} ({Weaker is} 58. Kxh5 Bf3+ 59. Kh4 Bd1 $18) (58. a5 $18 Bf3 59. Ne8+ Ke7 60. Ng7) 58... Bf3 {[%emt 0:00:19][%mdl 8192]} (58... Be8 $11 59. Ne5 Ke6) 59. b4 {[%emt 0:00:20]} Be2 {[%emt 0:00:29]} 60. Ne3 {[%emt 0:00:36]} Bd3 {[%emt 0:00:41]} 61. c4 {[%emt 0:00:50][%cal Bc3c4,Bc4b5,Bb5b6][%mdl 32] White threatens b5 and mate.} Be2 {[%emt 0:00:10]} 62. b5 {[%emt 0:00:20] White mates.} axb5 63. cxb5 {[%emt 0:00:11]} Ke6 {[%emt 0:00:37]} 64. b6 {[%emt 0:00:25]} Kd7 {[%emt 0:00:37]} 65. Nxf5 {[%emt 0:00:24]} Ba6 {[%emt 0:00:26]} 66. Nd4 {[%emt 0:01:06]} Kd6 {[%emt 0:00:11]} 67. a5 {[%emt 0:00:12]} Kd5 {[%emt 0:00:40] [#]} 68. f5 $1 {[%emt 0:00:25]} Ke5 {[%emt 0:00:48] [#]} 69. Kg5 $1 {[%emt 0:00:21]} h4 {[%emt 0:00:31] [#]} (69... Kxd4 70. f6) 70. Kxh4 $1 {[%emt 0:00:09]} Bb7 {[%emt 0:00:25] [#]} 71. Kg5 $1 {[%emt 0:00:08][%mdl 32768] Weighted Error Value: White=0.24 (precise) /Black=0.39. An unexpected result.} 1/2-1/2

[Event "87th Spanish Championship 2022"]
[Site "Linares"]
[Date "2022.08.12"]
[Round "2.33"]
[White "Vehi Bach, Victor Manuel"]
[Black "Yuste Valenzuela, Alejandro"]
[Result "1-0"]
[ECO "B27"]
[WhiteElo "2290"]
[BlackElo "2022"]
[Annotator "TA"]
[PlyCount "90"]
[EventDate "2022.08.11"]
[EventType "swiss"]
[EventCountry "ESP"]
[SourceTitle "playchess.com"]
[Source "ChessBase"]
[SourceQuality "1"]
[TimeControl "5400+30"]

{[%evp 9,90,49,54,64,112,72,82,65,68,70,87,85,86,73,62,76,80,61,75,68,81,84,83,79,78,82,162,159,152,144,147,164,231,213,228,208,300,292,297,297,290,267,258,266,335,309,395,385,366,362,331,258,588,448,617,393,393,390,537,468,594,349,646,599,616,608,566,576,956,931,1011,992,786,754,736,737,685,674,819,739,4714,2654,29983]} 1. e4 {[%emt 0:00:02]} c5 {[%emt 0:00:19]} 2. Nf3 {[%emt 0:00:08]} g6 {[%emt 0:01:04]} 3. d4 {[%emt 0:01:26]} Bg7 {[%emt 0:00:08]} 4. dxc5 {[%emt 0:02:47]} Qa5+ {[%emt 0:02:30]} 5. c3 {[%emt 0:01:56]} Qxc5 {[%emt 0:02:04]} 6. Na3 {[%emt 0:00:22] B27: Sicilian: 2 Nf3, unusual Black 2nd moves.} b6 {[%emt 0:11:52]} (6... d6 $14 {is more appropriate.}) 7. Bc4 {[%emt 0:25:40] [#]} Ba6 $146 {[%emt 0:09:34]} ({Predecessor:} 7... Bb7 8. O-O Nf6 9. e5 Ne4 10. Be3 Qc8 11. Bd5 O-O 12. Re1 Nc5 13. Bg5 Nc6 {0-1 (64) Lupor,S (2234)-Nordsieck,T (2291) Germany 2016}) 8. Bxa6 {White is better.} Nxa6 {[%emt 0:00:09]} 9. O-O {[%emt 0:20:50]} Qc6 {[%emt 0:05:54]} 10. Re1 {[%emt 0:01:23]} Nc5 {[%emt 0:06:36]} 11. Nd4 {[%emt 0:01:59]} Qb7 {[%emt 0:04:20]} 12. e5 {[%emt 0:04:22]} h5 {[%emt 0:10:57]} 13. Nc4 {[%emt 0:06:32]} Nh6 {[%emt 0:08:42]} 14. Bg5 {[%emt 0:02:03] White stays focused until the end.} Ne6 {[%emt 0:02:47]} 15. Nxe6 {[%emt 0:04:40] White is much more active. The black rooks are badly placed.} dxe6 {[%emt 0:00:53]} 16. Qa4+ {[%emt 0:02:01]} b5 {[%emt 0:16:12] [#]} 17. Qb4 {[%emt 0:00:08] Threatens to win with Na5.} Nf5 {[%emt 0:02:06]} (17... O-O $16 {might work better.}) 18. a4 $18 {[%emt 0:02:00]} O-O {[%emt 0:03:20]} 19. axb5 {[%emt 0:01:44]} (19. Qxb5 Qc8 20. Qb3 Rb8 $16) 19... Rfb8 {[%emt 0:01:51] [#]} 20. Ra5 $1 {[%emt 0:04:32]} f6 {[%emt 0:00:44]} (20... Rd8 $142 21. Qa4 Rd5) 21. Bf4 {[%emt 0:00:53][%cal Bg5f4,Bf4d6,Bd6e7][%mdl 32] Black must now prevent exf6.} Rd8 {[%emt 0:00:13][%cal Ob7e4]} 22. exf6 {[%emt 0:04:09]} exf6 {[%emt 0:01:12]} (22... Bxf6 $142 23. Raa1 g5) 23. Nd6 {[%emt 0:00:08]} Nxd6 {[%emt 0:02:13]} 24. Bxd6 {[%emt 0:00:08]} Qd5 {[%emt 0:01:35]} 25. Be7 {[%emt 0:04:58]} Rd7 {[%emt 0:02:31]} 26. c4 {[%emt 0:00:26][%cal Bc3c4,Bc4c5][%mdl 32]} Qb7 {[%emt 0:01:07]} 27. Bd6 {[%emt 0:01:01]} ({Worse is} 27. Rxe6 Rd1+ 28. Re1 Rxe1+ 29. Qxe1 Re8 $17) 27... Rad8 {[%emt 0:00:36]} 28. c5 {[%emt 0:00:23] Strongly threatening c6.} Qd5 {[%emt 0:00:18]} 29. h3 {[%emt 0:00:58]} f5 {[%emt 0:00:18]} 30. Ra4 {[%emt 0:01:38]} Rc8 $2 {[%emt 0:01:10]} (30... Bf6 31. Rc1 g5) 31. Qa3 {[%emt 0:02:18]} Qd2 {[%emt 0:01:52]} 32. Qe3 {[%emt 0:00:45]} Qxe3 {[%emt 0:00:49]} 33. Rxe3 {[%emt 0:00:09]} (33. fxe3 Bf8 34. Bxf8 Kxf8 $18) 33... Bf8 {[%emt 0:00:32]} 34. Bxf8 {[%emt 0:01:42]} ({Weaker is} 34. Rxe6 Kf7 35. Re3 Bxd6 36. cxd6 Rb8 $16) 34... Kxf8 {[%emt 0:00:04][%mdl 4096] Endgame KRR-KRR} 35. b4 {[%emt 0:00:32]} Ke7 $2 {[%emt 0:00:35]} (35... Rb8 36. Rxe6 Kf7) 36. Ra6 {[%emt 0:00:12] White is clearly winning.} Rb8 {[%emt 0:00:25]} 37. Rexe6+ {[%emt 0:00:11]} Kf7 {[%emt 0:00:43]} 38. Rf6+ {[%emt 0:00:07]} Kg7 {[%emt 0:00:30]} 39. Rxg6+ {[%emt 0:00:08]} Kf7 {[%emt 0:00:01]} 40. Raf6+ {[%emt 0:00:26]} Ke7 {[%emt 0:00:06]} 41. b6 {[%emt 0:00:10]} axb6 {[%emt 0:00:29]} 42. Rxb6 {[%emt 0:00:09]} Rxb6 {[%emt 0:00:14]} 43. Rxb6 {[%emt 0:00:16]} Rd3 {[%emt 0:00:03]} 44. Rb7+ {[%emt 0:00:18]} Ke6 {[%emt 0:00:16]} 45. c6 {[%emt 0:00:08]} Kd5 {Weighted Error Value: White=0.23 (precise) /Black=0.53} 1-0

[Event "87th Spanish Championship 2022"]
[Site "Linares"]
[Date "2022.08.12"]
[Round "2.34"]
[White "Vesga Izeta, Markel"]
[Black "Esquivias Quintero, Luis Manuel"]
[Result "0-1"]
[ECO "E01"]
[WhiteElo "2143"]
[BlackElo "2299"]
[Annotator "TA"]
[PlyCount "168"]
[EventDate "2022.08.11"]
[EventType "swiss"]
[EventCountry "ESP"]
[SourceTitle "playchess.com"]
[Source "ChessBase"]
[SourceQuality "1"]
[TimeControl "5400+30"]

{[%evp 12,168,20,0,18,35,38,-21,0,0,34,30,42,34,45,27,13,13,23,12,2,8,8,-58,-47,-60,-51,-68,-13,-7,0,-38,71,70,93,86,88,74,105,73,109,80,90,-37,-40,-94,-91,-200,-127,-119,-114,-114,-89,-98,-92,-101,-79,-88,-85,-134,-117,-220,-91,-184,-85,-174,-80,-189,-80,-117,-117,-118,-112,-122,-122,-120,-109,-102,-73,-62,-54,-97,-93,-131,-95,-265,-264,-264,-135,-134,-135,-137,-101,-101,-101,-101,-101,-106,-104,-111,-75,-124,-102,-102,-102,-104,-104,-95,-92,-108,-80,-77,-75,-29967,-29967,-29962,-29968,-29966,-29971,-29971,-29972,-29970,-44,-29976,-29977,-29977,-29978,-29978,-29976,-29978,-29979,-29979,-29980,-29980,-29981,-29981,-29982,-29983,-29984,-29984,-29985,-29985,-29986,-29986,-29987,-29987,-29988,-29988,-29989,-29989,-29990,-29990,-29991,-29991,-29991,-29991,-29992,-29992,-397]} 1. d4 {[%emt 0:00:02]} Nf6 {[%emt 0:02:07]} 2. c4 {[%emt 0:00:07]} e6 {[%emt 0:00:11]} 3. g3 {[%emt 0:00:16]} d5 {[%emt 0:00:17]} 4. Bg2 {[%emt 0:00:04]} Bb4+ {[%emt 0:00:16]} 5. Nd2 {[%emt 0:00:33]} O-O {[%emt 0:00:44]} 6. Ngf3 {[%emt 0:00:07]} dxc4 {[%emt 0:00:11]} 7. Qc2 {[%emt 0:00:08]} (7. a3 $5 {[%cal Ra3b4]} Bxd2+ 8. Bxd2 $11) 7... a6 {[%emt 0:18:41] E04: Open Catalan: 5 Nf3.} (7... b5 {is more complex.} 8. a4 a6 9. axb5 Bb7) 8. Qxc4 {[%emt 0:04:29]} (8. a4 {seems wilder.} b5 9. axb5 Bb7 10. bxa6 Rxa6 11. Rxa6 Nxa6 12. O-O) 8... Be7 {[%emt 0:00:07] [#]} 9. a4 $146 {[%emt 0:16:18] Prevents b5.} (9. Ne5 $14) ({Predecessor:} 9. Qc2 Nc6 10. e3 Nb4 11. Qb1 c5 12. a3 Nc6 13. dxc5 Bxc5 14. b4 Be7 15. Bb2 {½-½ (31) Matlakov,M (2700)-Blesic,V (2390) Caleta 2019}) 9... Nbd7 {[%emt 0:05:25][%cal Ob7b5] The position is equal.} (9... b5 $5 {[%cal Rb5c4]} 10. Qb3 Bb7 $11) 10. Qc2 {[%emt 0:03:24]} c5 {[%emt 0:00:42]} 11. O-O {[%emt 0:00:47]} cxd4 {[%emt 0:15:11]} 12. Nxd4 {[%emt 0:00:24]} Nc5 {[%emt 0:00:08]} 13. N2b3 {[%emt 0:04:44]} Nxb3 {[%emt 0:23:07]} 14. Nxb3 {[%emt 0:00:09]} Nd5 {[%emt 0:00:20]} 15. Bd2 {[%emt 0:06:05]} Bd7 {[%emt 0:01:57]} 16. Qd3 {[%emt 0:09:58]} Qe8 {[%emt 0:02:57]} 17. Na5 {[%emt 0:33:55]} (17. Bxd5 $11 exd5 18. Bc3) 17... Bxa4 $15 {[%emt 0:04:43]} 18. Nxb7 {[%emt 0:00:18]} Bb5 {[%emt 0:00:28]} 19. Qf3 {[%emt 0:00:17]} Qd7 {[%emt 0:01:04]} (19... Qc8 $15 20. Na5 Qc2) 20. Na5 $11 {[%emt 0:00:52]} Bf6 {[%emt 0:00:55]} 21. Rfd1 {[%emt 0:01:18]} Qe7 {[%emt 0:08:45]} (21... Ba4 $15 {stays ahead.} 22. Rdb1 Bc2) 22. e4 $16 {[%emt 0:00:39]} Nb4 {[%emt 0:01:16]} 23. Qb3 {[%emt 0:00:49]} Nd3 {[%emt 0:01:04]} 24. e5 $1 {[%emt 0:08:14]} Nxe5 {[%emt 0:04:09][%cal Ob5e2]} 25. Bb4 {[%emt 0:00:30]} Qc7 {[%emt 0:02:37]} 26. Rac1 {[%emt 0:00:29][%mdl 1024] White has strong compensation.} Qb6 {[%emt 0:00:18][%cal Oe5d3]} 27. Rd6 {[%emt 0:00:48] Prevents Nd3.} (27. Bxf8 $16 Rxf8 28. Qb4 (28. Nc4 Nxc4 29. Rxc4 Rd8 $14)) 27... Qa7 $15 {[%emt 0:02:09]} 28. Qa3 {[%emt 0:08:05]} (28. Nb7 $15) 28... Rac8 {[%emt 0:01:36]} ({Reject} 28... Ng4 29. Bc5 Rac8 30. Nb7 (30. Bxa7 $2 Rxc1+ 31. Bf1 Rxf1+ 32. Kg2 Rb1 $19) 30... Rxc5 31. Nxc5 $11 (31. Rxc5 Qb8 $11)) 29. Rcd1 {[%emt 0:00:32]} ({Not} 29. Rc5 $2 Be7 30. Qc3 Bxd6 $19) (29. Bc5 $17) 29... Bd8 {[%emt 0:02:16] Hoping for ...Bxa5.} 30. b3 {[%emt 0:00:28]} Bb6 {[%emt 0:00:14]} ({Stronger than} 30... Bxa5 31. Qxa5 Rfe8 32. Rd8 Rcxd8 33. Rxd8 $15) 31. Qb2 {[%emt 0:00:33]} Ng4 {[%emt 0:00:22][%cal Rg4f2]} 32. Rxb6 {[%emt 0:00:14]} Qxb6 {[%emt 0:00:40]} 33. Bxf8 {[%emt 0:00:08]} Rxf8 {[%emt 0:00:37] Dancing on a razor blade.} 34. b4 {[%emt 0:00:20]} Rd8 {[%emt 0:00:26]} 35. Rxd8+ {[%emt 0:00:27]} (35. Rc1 $142) 35... Qxd8 $17 {[%emt 0:00:01]} 36. Bf3 {[%emt 0:00:10] [#] Inhibits Qd1+.} (36. Qc2 $17 {was necessary.}) 36... Nf6 {[%emt 0:00:14]} (36... Qd3 $1 $19 {[%csl Gb5][%cal Rd3f1]} 37. Qc1 f5 38. Bxg4 fxg4) 37. Kg2 {[%emt 0:00:23]} (37. Qc3 $17) 37... h6 {[%emt 0:00:13]} (37... Qd3 $19 {[%csl Gb5][%cal Rd3f1]} 38. Qa1 Qd2) 38. Nb7 {[%emt 0:00:53]} (38. Qc3 $17) 38... Qe7 {[%emt 0:00:44]} (38... Qd3 $19 {[%csl Gb5][%cal Rd3f1]} 39. Qc1 e5) 39. Nc5 {[%emt 0:00:15]} (39. Qc3 $17 {keeps fighting.}) 39... e5 {[%emt 0:01:54]} (39... a5 $1 $19 {And now ...Qd6 would win.} 40. h4 a4) 40. Be2 {[%emt 0:00:20]} Bxe2 {[%emt 0:00:49]} 41. Qxe2 {[%emt 0:00:05][%mdl 4096] Endgame KQN-KQN} a5 $1 {[%emt 0:00:05]} 42. Qb5 {[%emt 0:00:43]} axb4 {[%emt 0:00:11]} 43. Qb8+ {[%emt 0:00:23]} Kh7 {[%emt 0:00:57]} 44. Qxb4 {[%emt 0:00:02]} e4 {[%emt 0:00:17]} 45. Qd4 {[%emt 0:00:29]} g6 {[%emt 0:00:13][%cal Bg7g6,Bg6g5][%mdl 32]} 46. Qe3 {[%emt 0:00:27]} Qe5 {[%emt 0:00:19]} 47. Nd3 {[%emt 0:00:28]} Qf5 {[%emt 0:00:12]} 48. Nf4 {[%emt 0:01:03]} (48. Nb4 $17 {was worth a try.}) 48... g5 $19 {[%emt 0:00:56]} 49. Nh3 {[%emt 0:00:45] [#]} Ng4 {[%emt 0:00:10]} ({Better is} 49... Qf3+ $1 $19 50. Qxf3 exf3+ 51. Kxf3 g4+ 52. Kg2 gxh3+ 53. Kxh3 Kg6) 50. Qe2 $17 {[%emt 0:00:09]} Ne5 {[%emt 0:00:46] aiming for ...Qf3+.} 51. Ng1 {[%emt 0:00:28] Prevents Qf3+.} Kg7 {[%emt 0:00:54][%cal Oh6h5]} 52. h3 {[%emt 0:00:17]} Kh7 {[%emt 0:00:16]} 53. Qd1 {[%emt 0:00:59]} Nd3 {[%emt 0:01:11]} 54. Qe2 {[%emt 0:00:19]} Qe5 {[%emt 0:00:24] 0x0.0013bba6ba41dp-1022s more active pieces.} 55. Qe3 {[%emt 0:01:02] Inhibits Qd4.} Kg7 {[%emt 0:00:06]} 56. f3 {[%emt 0:01:36]} ({White should play} 56. Ne2) 56... exf3+ {[%emt 0:00:10]} 57. Kxf3 {[%emt 0:00:01]} Qd5+ {[%emt 0:01:10]} 58. Ke2 {[%emt 0:00:21]} Ne5 {[%emt 0:00:12]} 59. Kf2 {[%emt 0:00:21]} Nc4 {[%emt 0:00:31]} 60. Qc3+ {[%emt 0:00:09]} Kh7 {[%emt 0:00:12]} 61. Nf3 {[%emt 0:00:58]} Nd6 {[%emt 0:00:30] ( -> ...Ne4+)} 62. Nd2 $2 {[%emt 0:00:29][%mdl 8192] [#]} (62. Qe5 $17 Qa2+ 63. Kg1 Qb1+ 64. Qe1) 62... Qxd2+ $3 {[%emt 0:00:13][%mdl 512]} 63. Qxd2 {[%emt 0:00:08]} Ne4+ {[%emt 0:00:02]} 64. Ke3 {[%emt 0:00:01]} Nxd2 {[%emt 0:00:05]} 65. Kxd2 {[%emt 0:00:02] K3P-KPP} Kg6 {[%emt 0:01:30]} 66. Ke3 {[%emt 0:02:32]} Kf5 $2 {[%emt 0:00:08]} (66... h5 {mates} 67. Ke4 f5+ 68. Ke5 h4 69. gxh4 gxh4 70. Kd4 Kh6 71. Kd5 Kh5 72. Kd4 Kg6 73. Ke3 Kf6 74. Kf4 Ke6 75. Kf3 Ke5 76. Ke3 f4+ 77. Kf3 Kf5 78. Ke2 Ke4 79. Kf2 f3 80. Kf1 Ke5 81. Kg1 Kf5 82. Kf1 Ke4 83. Kf2 Kf4 84. Kf1 Kg3 85. Ke1 Kxh3 86. Kf2 Kg4 87. Kf1 Kg3 88. Ke1 h3 89. Kd1 f2 90. Kc2 h2 91. Kd2 f1=Q 92. Kc3 h1=Q 93. Kb4 Qc6 94. Ka3 Qc3+ 95. Ka4 Qfc4#) 67. Kf3 $2 {[%emt 0:00:26][%mdl 8192]} (67. g4+ $15 Ke5 68. Kf2) 67... h5 {[%emt 0:00:26] Black mates.} 68. Ke3 {[%emt 0:00:31]} Ke5 {[%emt 0:00:10]} 69. Kf3 {[%emt 0:00:14]} Kd4 {[%emt 0:01:10]} 70. h4 {[%emt 0:00:15]} gxh4 {[%emt 0:00:10]} 71. gxh4 {[%emt 0:00:08] KPP-KP} Ke5 {[%emt 0:00:02]} 72. Ke3 {[%emt 0:00:15]} Kf5 {[%emt 0:00:05]} 73. Kf3 {[%emt 0:00:03] [#]} f6 $1 {[%emt 0:00:04][%cal Bf7f6,Bf6f5,Bf5f4,Bf4f3,Bf3f2][%mdl 32]} 74. Ke3 {[%emt 0:00:17]} Kg4 {[%emt 0:00:06]} 75. Ke4 {[%emt 0:00:04]} f5+ {[%emt 0:00:24]} 76. Ke3 {[%emt 0:00:01]} Kg3 {[%emt 0:00:09]} 77. Ke2 {[%emt 0:00:08]} f4 {[%emt 0:00:06]} 78. Kf1 {[%emt 0:00:04]} Kxh4 {[%emt 0:00:15] KP-KP} 79. Kf2 {[%emt 0:00:05]} Kg4 {[%emt 0:00:05][%cal Bh4g4,Bg4f4,Bf4g3][%mdl 32]} 80. Kg2 {[%emt 0:00:04]} f3+ {[%emt 0:00:07]} 81. Kf2 {[%emt 0:00:06]} Kf4 {[%emt 0:00:03]} 82. Kf1 {[%emt 0:00:02]} Kg3 {[%emt 0:00:03]} 83. Kg1 {[%emt 0:00:05]} f2+ {[%emt 0:00:10]} 84. Kf1 {[%emt 0:00:13]} h4 {[%emt 0:00:03] Weighted Error Value: White=0.30/Black=0.26 (precise)} 0-1

[Event "87th Spanish Championship 2022"]
[Site "Linares"]
[Date "2022.08.12"]
[Round "2.36"]
[White "Maldonado Mena, German"]
[Black "Martinez Fernandez, Adrian"]
[Result "0-1"]
[ECO "D35"]
[WhiteElo "2061"]
[BlackElo "2366"]
[Annotator "TA"]
[PlyCount "62"]
[EventDate "2022.08.11"]
[EventType "swiss"]
[EventCountry "ESP"]
[SourceTitle "playchess.com"]
[Source "ChessBase"]
[SourceQuality "1"]
[TimeControl "5400+30"]

{[%evp 18,62,22,9,15,7,20,16,18,0,0,0,0,4,33,0,22,-87,-95,-147,-141,-138,-132,-128,-136,-402,-443,-429,-406,-534,-520,-661,-651,-635,-636,-637,-531,-589,-558,-584,-566,-695,-687,-691,-678,-1128,-1084]} 1. d4 {[%emt 0:00:03]} Nf6 {[%emt 0:00:08]} 2. c4 {[%emt 0:00:03]} e6 {[%emt 0:00:05]} 3. Nc3 {[%emt 0:00:04]} d5 {[%emt 0:00:06]} 4. cxd5 {[%emt 0:00:06]} exd5 {[%emt 0:00:06]} 5. Bg5 {[%emt 0:00:07]} c6 {[%emt 0:00:06]} 6. e3 {[%emt 0:00:05]} h6 {[%emt 0:00:06]} 7. Bh4 {[%emt 0:00:04]} Be7 {[%emt 0:00:07]} 8. Bd3 {[%emt 0:01:49]} O-O {[%emt 0:00:09]} 9. Qc2 {[%emt 0:04:26] 9.Nge2 is the fancy move.} Re8 {[%emt 0:00:08]} 10. Nf3 {[%emt 0:01:00]} Ne4 {[%emt 0:00:16] D36: Queen's Gambit Declined: Exchange Variation: Main line (5 Bg5 c6 6 Qc2).} (10... Bg4 {with more complications.} 11. Ne5 Nbd7 12. h3 Be6) 11. Bxe7 {[%emt 0:12:30]} Qxe7 {[%emt 0:00:28]} 12. Bxe4 {[%emt 0:00:54]} dxe4 {[%emt 0:00:07] The position is equal.} 13. Ne5 {[%emt 0:01:53]} f6 {[%emt 0:17:57][%cal Bf7f6,Bf6f5,Bf5g4][%mdl 32]} 14. Ng6 {[%emt 0:00:39] Pair of Knights!} Qf7 {[%emt 0:01:14]} 15. Nf4 {[%emt 0:00:08]} f5 {[%emt 0:00:31]} 16. h4 {[%emt 0:00:39] [#]} Nd7 $146 {[%emt 0:00:19][%cal Bb8d7,Bd7f8,Bf8g6,Bg6f4][%mdl 32]} ({Predecessor:} 16... Be6 17. Nxe6 Rxe6 18. Qb3 Rd6 19. Qxf7+ Kxf7 20. Ke2 Na6 21. f3 exf3+ 22. Kxf3 Re8 {½-½ (37) Zgarba,R (1706)-Zpevakova,J (2087) Stare Mesto 2016}) 17. g4 {[%emt 0:06:27]} (17. Qb3 $11) 17... fxg4 $17 {[%emt 0:11:11]} 18. Nxe4 {[%emt 0:01:41] [#]} (18. Qb3 $142) 18... Nf8 $1 {[%emt 0:00:21]} 19. Kd2 {[%emt 0:33:36] [#] aiming for Nd6.} Rd8 {[%emt 0:06:05] Prevents Nd6.} ({Of course not} 19... Bf5 $6 20. Nd6 Bxc2 21. Nxf7 $11) 20. Nd3 {[%emt 0:18:00]} Bf5 {[%emt 0:04:26]} 21. Ne5 $2 {[%emt 0:00:06][%mdl 8192] This move loses the game for White.} (21. Ng3 $17 {is the only way for White.}) 21... Qe6 $19 {[%emt 0:01:57] ...Qxe5 is the strong threat. The board is on fire.} 22. Ke2 {[%emt 0:06:04]} Ng6 {[%emt 0:01:52]} (22... Qd5 23. Nf6+ gxf6 24. Qxf5 fxe5 25. Rag1 Qc4+ 26. Kd2 $17) 23. Nc5 {[%emt 0:01:05]} Qxe5 {[%emt 0:00:42] Black is clearly winning.} ({Not} 23... Bxc2 24. Nxe6 Nxe5 25. dxe5 $15 (25. Nxd8 Bd3+ 26. Kd2 Rxd8 $17)) 24. dxe5 {[%emt 0:01:36]} Bxc2 {[%emt 0:00:06]} 25. Rac1 {[%emt 0:00:24]} Bf5 {[%emt 0:00:07]} 26. e4 {[%emt 0:00:06]} Bd7 {[%emt 0:01:04]} 27. e6 {[%emt 0:02:59]} Nf4+ {[%emt 0:00:30]} 28. Ke3 {[%emt 0:01:08]} Nxe6 {[%emt 0:00:05]} 29. Nxb7 {[%emt 0:00:07]} Rdb8 {[%emt 0:00:10]} 30. Na5 {[%emt 0:00:09]} Rxb2 {[%emt 0:00:42] Hoping for ...Rf8.} 31. Rhd1 {[%emt 0:00:52] [#]} Rf8 $1 {[%emt 0:02:25] Weighted Error Value: White=0.59/Black=0.09 (flawless)} 0-1